bitfinex/quotes_ETHUSD_20220309
["timestamp","ask_amount","ask_price","bid_price","bid_amount"]
[1646799752798,0.445,2712.2,2711.4,0.3691]
[1646799753199,0.445,2712.2,2711.4,1.03042086]
[1646799753551,1.15145058,2712.6,2711.4,1.03042086]
[1646799753552,2.0063317,2712.7,2711.6,0.3691]
[1646799753758,2.0063317,2712.7,2711.7,0.66132086]
[1646799753759,1.5613317,2712.7,2711.7,0.66132086]
[1646799753959,1.5613317,2712.7,2711.8,1.03042086]
[1646799754555,0.5613317,2712.7,2711.8,1.03042086]
[1646799754757,0.5613317,2712.7,2712.5,1.23313419]
[1646799754957,0.5613317,2712.7,2711.8,0.66132086]
[1646799755159,0.5613317,2712.7,2711.7,2.50544086]
[1646799755559,0.5613317,2712.7,2711.7,1.84412]
[1646799755756,0.5613317,2712.7,2711.7,2.50544086]
[1646799755956,0.5613317,2712.7,2712.2,1.18173544]
[1646799756158,0.5613317,2712.7,2712.1,0.00716313]
[1646799756958,0.5613317,2712.7,2711.8,0.3691]
[1646799757387,0.5613317,2712.7,2712.3,0.00716263]
[1646799757585,0.5613317,2712.7,2712.3,1.05822022]
[1646799757792,0.5613317,2712.7,2712.3,0.00716263]
[1646799758288,0.5613317,2712.7,2711.8,4.53042086]
[1646799758487,0.4496,2713.1,2712.1,0.3691]
[1646799758690,0.4496,2713.1,2712.4,0.00716239]
[1646799758892,1.99394244,2713.4,2712.9,1.15571853]
[1646799759495,0.56117295,2713.5,2712.9,1.15571853]
[1646799761740,1.58910739,2713.5,2712.9,1.15571853]
[1646799762841,0.56117295,2713.5,2712.9,1.15571853]
[1646799765594,0.00096,2713.8,2713.5,0.49540488]
[1646799765794,1.30096,2714.0,2713.5,0.49138033]
[1646799765994,1.3,2714.0,2713.5,0.49138033]
[1646799766395,1.86539843,2714.0,2713.5,0.49138033]
[1646799766593,0.90148128,2713.8,2713.5,0.49138033]
[1646799766794,0.86539843,2714.0,2713.5,0.44138033]
[1646799767197,0.56539843,2714.0,2713.5,0.44138033]
[1646799769451,0.56539843,2714.0,2713.5,0.81048033]
[1646799769649,0.00096,2714.4,2713.5,0.81048033]
[1646799769847,11.05,2714.5,2713.5,0.81048033]
[1646799770049,0.4496,2714.6,2713.5,0.81048033]
[1646799770947,0.00096,2714.8,2713.5,0.81048033]
[1646799771152,8.59974755,2715.0,2713.5,1.73187033]
[1646799771448,8.59974755,2715.0,2713.5,0.81048033]
[1646799771449,1.14244582,2714.8,2713.5,0.81048033]
[1646799771648,8.59974755,2715.0,2713.5,0.81048033]
[1646799771850,0.56342199,2715.0,2713.5,0.81048033]
[1646799772695,0.09884373,2714.9,2713.5,0.81048033]
[1646799772898,0.09884373,2714.9,2713.5,1.94092933]
[1646799775901,0.56342199,2715.0,2713.5,2.60225019]
[1646799776154,0.00096,2715.0,2713.5,17.28482933]
[1646799776346,0.56664112,2715.1,2713.5,19.13636734]
[1646799776947,0.56664112,2715.1,2713.5,18.25925954]
[1646799777350,0.56664112,2715.1,2713.8,0.3691]
[1646799777547,0.56664112,2715.1,2714.2,0.92119]
[1646799777748,0.56568112,2715.1,2714.2,0.92119]
[1646799778754,0.56568112,2715.1,2714.6,1.29014]
[1646799779554,0.56568112,2715.1,2714.6,0.92104]
[1646799779785,0.56568112,2715.1,2714.4,0.9210653]
[1646799780389,0.56568112,2715.1,2714.7,0.92098]
[1646799780994,0.56568112,2715.1,2714.7,1.8419306]
[1646799781496,0.56568112,2715.1,2714.7,3.6837606]
[1646799783553,0.00125146,2715.3,2714.8,9.18342]
[1646799783745,0.17293226,2715.7,2714.9,0.445]
[1646799783948,0.00125146,2715.3,2715.1,2.76219]
[1646799784146,0.00125146,2715.3,2715.1,2.75614978]
[1646799784348,0.00125146,2715.3,2715.1,0.92071]
[1646799784948,0.71539287,2715.7,2715.1,0.92071]
[1646799785148,0.71689784,2715.7,2715.1,0.92071]
[1646799785550,0.1841,2715.8,2715.7,0.58325031]
[1646799786452,3.0,2715.9,2715.7,0.58325031]
[1646799787150,1.0,2716.1,2715.7,0.58325031]
[1646799787799,1.0,2716.1,2715.8,0.92078]
[1646799788001,0.00361146,2716.3,2715.8,0.92078]
[1646799788601,0.00361146,2716.3,2715.9,3.5]
[1646799788801,0.00361146,2716.3,2715.8,0.92078]
[1646799789501,0.00361146,2716.3,2716.0,1.84121]
[1646799790101,0.00135742,2716.2,2716.0,1.84121]
[1646799791140,0.00361146,2716.3,2716.0,1.84121]
[1646799791342,0.00135742,2716.2,2716.0,1.84121]
[1646799791743,0.00135742,2716.2,2716.0,2.02511]
[1646799791946,0.00135742,2716.2,2716.0,1.84121]
[1646799792147,0.00361146,2716.3,2715.7,0.58325031]
[1646799792546,0.00135742,2716.2,2715.7,0.58325031]
[1646799793544,0.00361146,2716.3,2715.7,0.58325031]
[1646799793545,1.5,2716.0,2715.7,0.58325031]
[1646799794787,1.50135742,2716.0,2715.7,0.58325031]
[1646799795394,3.5,2715.9,2715.7,0.58325031]
[1646799795792,5.445,2715.8,2715.1,5.805]
[1646799795995,5.445,2715.8,2714.9,2.4065]
[1646799795996,3.5,2715.7,2714.9,2.4065]
[1646799796196,3.0,2715.2,2714.8,3.78562]
[1646799796398,6.5,2715.1,2714.4,0.1841]
[1646799796597,6.5,2715.1,2714.3,0.1841]
[1646799796598,3.0,2714.8,2714.3,0.1841]
[1646799796800,0.33049866,2715.7,2714.3,0.92128]
[1646799796801,0.00096,2715.5,2714.3,0.92128]
[1646799797002,3.5,2715.7,2714.4,1.2719568]
[1646799797003,0.00096,2715.3,2714.4,1.2719568]
[1646799797298,1.14797744,2715.2,2714.5,0.1841]
[1646799797498,1.14797744,2715.2,2714.1,0.1841]
[1646799797698,0.00096,2715.6,2714.4,1.84234]
[1646799797898,0.00135705,2715.6,2714.4,1.84234]
[1646799798101,3.0,2715.4,2714.4,1.84234]
[1646799798297,0.00135705,2715.6,2714.4,1.84234]
[1646799798298,3.0,2715.0,2714.4,1.84234]
[1646799798556,6.0,2715.0,2714.0,6.9305]
[1646799798746,7.22323509,2715.0,2714.2,1.84247]
[1646799799147,3.5,2714.9,2714.2,1.84247]
[1646799799346,7.22323509,2715.0,2714.2,1.84247]
[1646799799750,3.0,2714.3,2713.9,0.1841]
[1646799799948,3.0,2714.3,2713.8,5.2506]
[1646799799949,3.0,2714.6,2713.8,2.7701]
[1646799800150,3.6842,2714.7,2713.5,0.44138033]
[1646799800349,3.6842,2714.7,2713.6,1.27461456]
[1646799800550,3.0,2714.3,2713.6,1.27461456]
[1646799800953,0.00096,2714.6,2713.8,1.84275]
[1646799801151,0.18516,2714.8,2713.9,1.27461456]
[1646799801352,6.00096,2715.0,2713.9,1.27461456]
[1646799801651,6.0,2715.0,2713.9,1.27461456]
[1646799802054,3.0,2715.0,2713.9,1.27461456]
[1646799802287,3.0,2714.6,2713.9,1.27461456]
[1646799802492,3.0,2714.6,2714.1,0.92128]
[1646799803291,3.5,2714.9,2714.1,0.92128]
[1646799803494,6.0,2715.0,2714.1,0.92128]
[1646799803695,6.0,2715.0,2714.2,1.2839574]
[1646799803895,3.0,2714.6,2714.1,0.92128]
[1646799804095,1.10462972,2714.8,2714.1,0.92128]
[1646799804495,3.0,2714.6,2714.1,0.92128]
[1646799804895,3.0,2714.6,2714.2,1.28485844]
[1646799805096,1.10462972,2714.8,2714.2,1.28485844]
[1646799805296,0.1841,2714.9,2714.2,3.12730844]
[1646799805497,0.1841,2714.9,2714.3,1.28485844]
[1646799805697,3.0,2715.0,2714.3,1.28485844]
[1646799805698,1.57586728,2715.0,2714.3,1.28485844]
[1646799805898,1.57586728,2715.0,2714.4,3.5]
[1646799806147,1.57586728,2715.0,2714.5,1.28485844]
[1646799806350,1.57586728,2715.0,2714.6,1.28485844]
[1646799806647,1.57586728,2715.0,2714.7,3.12689844]
[1646799806847,1.57586728,2715.0,2714.7,1.84204]
[1646799809450,1.57586728,2715.0,2714.8,1.26125205]
[1646799809651,1.57586728,2715.0,2714.8,3.10330205]
[1646799809893,1.57586728,2715.0,2714.4,0.1839]
[1646799810093,1.57586728,2715.0,2714.5,1.26217807]
[1646799810500,1.57586728,2715.0,2714.3,2.76304]
[1646799810697,1.57586728,2715.0,2714.4,1.2636393]
[1646799811498,1.57586728,2715.0,2714.4,2.1848793]
[1646799811698,1.57586728,2715.0,2714.4,0.92124]
[1646799812100,3.0,2714.8,2714.4,0.92124]
[1646799812304,3.0,2714.8,2713.9,2.84268]
[1646799812502,3.0,2714.8,2714.0,4.76393298]
[1646799812699,3.0,2714.8,2714.1,1.26393298]
[1646799813101,1.57586728,2715.0,2714.1,1.26393298]
[1646799813302,3.0,2714.2,2714.0,1.26393298]
[1646799813540,0.14624454,2714.7,2713.5,0.44138033]
[1646799813541,0.445,2714.4,2713.5,0.44138033]
[1646799813744,3.445,2714.5,2713.6,1.25127878]
[1646799813950,3.445,2714.5,2713.5,0.44138033]
[1646799814145,1.5,2714.1,2713.5,0.44138033]
[1646799814548,1.5,2714.1,2713.5,1.09203799]
[1646799814847,1.5,2714.1,2713.7,0.92149]
[1646799815444,1.5,2714.1,2713.5,0.44138033]
[1646799815445,3.0,2714.0,2713.5,0.44138033]
[1646799815846,1.5,2714.1,2713.6,0.92145]
[1646799816747,1.5,2714.1,2713.6,1.57210766]
[1646799817154,1.5,2714.1,2713.6,2.49352766]
[1646799817386,1.5,2714.1,2713.7,2.49325766]
[1646799817592,1.5,2714.1,2713.7,1.8426]
[1646799818890,1.5,2714.1,2713.7,2.49325766]
[1646799819091,3.56256875,2714.7,2714.3,0.53562233]
[1646799819289,3.56160875,2714.7,2714.3,0.53562233]
[1646799819490,0.51534454,2715.2,2714.3,0.53562233]
[1646799819491,3.00096,2715.2,2714.3,0.53562233]
[1646799819690,3.0,2715.2,2714.3,0.53562233]
[1646799819889,0.00096,2715.5,2714.3,0.53562233]
[1646799820095,0.5432076,2715.6,2714.4,3.5]
[1646799820291,0.5422476,2715.6,2714.7,0.92096]
[1646799820490,0.5422476,2715.6,2714.8,1.84204]
[1646799820491,0.54109412,2715.6,2714.8,1.84204]
[1646799820690,0.54109412,2715.6,2714.3,1.18627999]
[1646799820691,0.55428484,2715.6,2714.3,1.18627999]
[1646799820892,3.0,2715.3,2714.3,0.53562233]
[1646799821549,3.0,2715.3,2714.4,0.92117]
[1646799821746,3.0,2715.3,2714.5,1.84224]
[1646799821946,0.54321481,2715.6,2714.5,1.84224]
[1646799822146,0.54225481,2715.6,2714.5,1.84224]
[1646799822347,0.54225481,2715.6,2714.5,5.34224]
[1646799822547,0.54225481,2715.6,2714.5,5.99289766]
[1646799822548,0.54109412,2715.6,2714.5,5.99289766]
[1646799822750,0.54109412,2715.6,2714.6,0.65065766]
[1646799822950,0.54225486,2715.6,2714.9,0.92097]
[1646799823349,3.0,2715.5,2714.9,0.92097]
[1646799823547,3.0,2715.5,2714.7,1.0]
[1646799823748,0.54109412,2715.6,2714.5,6.99289766]
[1646799823948,0.54109412,2715.6,2714.6,0.65065766]
[1646799824150,0.54225492,2715.6,2714.8,0.92112]
[1646799824821,0.0011608,2715.6,2714.9,5.342]
[1646799825020,0.00560269,2715.9,2714.9,5.342]
[1646799825021,0.00096,2715.9,2714.9,5.342]
[1646799825218,3.0,2716.0,2714.9,6.342]
[1646799825420,0.00135727,2715.6,2714.9,2.842]
[1646799825618,3.56615656,2716.0,2715.9,0.00467872]
[1646799825916,3.56519656,2716.0,2715.9,0.00467872]
[1646799828748,0.56519656,2716.0,2715.9,0.00467872]
[1646799828950,0.00134045,2716.1,2715.9,0.00467872]
[1646799830562,0.00361146,2716.3,2716.0,2.5]
[1646799830753,0.00361146,2716.3,2715.9,4.42516032]
[1646799830754,0.00361146,2716.3,2715.9,7.18651032]
[1646799830954,0.00361146,2716.3,2715.9,4.68651032]
[1646799831755,0.00361146,2716.3,2715.9,5.60705032]
[1646799832392,0.00361146,2716.3,2715.9,17.25615032]
[1646799832593,0.00361146,2716.3,2715.9,5.60705032]
[1646799833894,0.0013371,2716.2,2716.0,1.23307701]
[1646799834995,0.00361146,2716.3,2716.0,1.23307701]
[1646799835296,0.0013371,2716.2,2716.0,1.23307701]
[1646799835896,0.00361146,2716.3,2716.0,1.23307701]
[1646799836346,0.0013371,2716.2,2716.0,1.23307701]
[1646799836945,0.0013371,2716.2,2716.1,3.5]
[1646799837148,0.00361146,2716.3,2716.2,3.42036]
[1646799837348,0.00361146,2716.3,2716.2,4.65343701]
[1646799837545,0.00361146,2716.3,2716.2,6.02253701]
[1646799837745,0.18370074,2716.4,2716.2,18.22288701]
[1646799837746,0.1392228,2716.4,2716.2,18.22288701]
[1646799837945,0.1392228,2716.4,2716.3,1.23307701]
[1646799838149,0.1392228,2716.4,2716.2,0.92036]
[1646799839447,0.1392228,2716.4,2716.3,1.25377421]
[1646799840089,0.14036511,2716.4,2716.3,1.25377421]
[1646799840693,0.14036511,2716.4,2716.2,0.92036]
[1646799840896,0.1392228,2716.4,2716.2,0.92036]
[1646799841294,0.13555889,2716.4,2716.2,0.92036]
[1646799841894,0.13555889,2716.4,2716.3,1.25534664]
[1646799842193,0.13555889,2716.4,2716.2,0.92036]
[1646799842395,0.13682129,2716.4,2716.2,0.92036]
[1646799842995,0.13682129,2716.4,2716.3,1.26621207]
[1646799842996,0.01444584,2716.4,2716.3,1.26621207]
[1646799843196,0.0751532,2716.6,2716.3,1.26621207]
[1646799843197,0.06110482,2716.6,2716.3,1.26621207]
[1646799843648,0.0012624,2716.4,2716.3,1.26621207]
[1646799844447,0.06110482,2716.6,2716.3,1.26621207]
[1646799845050,0.06110482,2716.6,2716.2,2.7612429]
[1646799845247,0.06110482,2716.6,2716.3,1.2639398]
[1646799845647,0.0181444,2717.1,2716.3,1.2639398]
[1646799845648,0.67439197,2716.9,2716.3,1.2639398]
[1646799845850,0.67439197,2716.9,2716.5,1.84074]
[1646799845851,0.13457734,2716.9,2716.5,1.84074]
[1646799846053,0.04156253,2716.6,2716.5,1.84074]
[1646799847289,0.04035807,2716.6,2716.5,1.84074]
[1646799848091,0.04035807,2716.6,2716.5,1.84194]
[1646799848697,0.09875267,2716.6,2716.5,1.84194]
[1646799853145,0.09875267,2716.6,2716.5,3.09195223]
[1646799853344,0.09875267,2716.6,2716.5,4.09195223]
[1646799853952,0.09875267,2716.6,2716.5,4.09735764]
[1646799854348,0.09875267,2716.6,2716.5,4.46645764]
[1646799854551,0.0629139,2716.7,2716.6,4.8691]
[1646799854552,0.0642445,2716.7,2716.6,4.8691]
[1646799854791,0.61175321,2717.6,2716.7,3.5]
[1646799855100,0.05355076,2718.1,2717.1,1.83996]
[1646799855291,0.0715195,2718.3,2717.3,5.5]
[1646799855493,0.0715195,2718.3,2717.4,14.59271761]
[1646799855494,0.01704176,2717.7,2717.4,14.59271761]
[1646799855694,0.02089796,2718.1,2717.7,0.00647656]
[1646799856091,0.0093344,2718.2,2717.8,1.105]
[1646799856295,0.01942872,2718.2,2717.8,1.105]
[1646799856498,1.01760417,2718.2,2717.8,1.105]
[1646799857196,63.82375102,2718.4,2717.8,1.105]
[1646799857197,53.67873028,2718.4,2718.3,5.0]
[1646799857395,53.67873028,2718.4,2718.3,2.37343136]
[1646799857396,39.24981198,2718.4,2718.3,2.37343136]
[1646799857596,39.24981198,2718.4,2718.3,3.00433136]
[1646799857794,39.24981198,2718.4,2718.3,2.00433136]
[1646799857996,39.24981198,2718.4,2718.3,3.00433136]
[1646799858197,33.73199198,2718.4,2718.3,3.00433136]
[1646799858395,33.73050788,2718.4,2718.3,3.00433136]
[1646799858849,24.63730788,2718.4,2718.3,3.00433136]
[1646799859151,24.63730788,2718.4,2718.3,3.37343136]
[1646799859349,12.13942793,2718.4,2718.3,3.00433136]
[1646799859748,1.75606793,2718.4,2718.3,14.28433136]
[1646799859948,1.55023273,2718.4,2718.3,14.28433136]
[1646799860149,0.53543111,2718.4,2718.3,14.65343136]
[1646799860351,0.01344128,2718.7,2718.5,12.36481136]
[1646799860550,0.01344128,2718.7,2718.6,12.73391136]
[1646799860950,0.0579707,2718.9,2718.8,12.36481136]
[1646799861348,0.0892859,2719.1,2719.0,12.36481136]
[1646799861551,0.01941616,2719.3,2719.0,12.73391136]
[1646799861754,0.01941616,2719.3,2719.0,13.73391136]
[1646799861949,0.02777602,2719.3,2719.2,12.36481136]
[1646799862148,0.02777602,2719.3,2719.2,1.08481136]
[1646799863295,0.02777602,2719.3,2719.2,2.00414136]
[1646799864499,0.02777602,2719.3,2719.2,2.00534136]
[1646799864702,0.1174805,2719.4,2719.3,16.36481136]
[1646799864900,0.1174805,2719.4,2719.3,12.73391136]
[1646799864901,0.1208141,2719.4,2719.3,12.73391136]
[1646799865102,0.1208141,2719.4,2719.3,13.73391136]
[1646799865303,0.05012834,2719.8,2719.5,13.65324136]
[1646799865504,0.12099184,2719.8,2719.7,14.57216136]
[1646799865706,3.0580363,2721.4,2720.2,1.23613658]
[1646799865911,0.0160912,2720.4,2720.3,16.67891136]
[1646799866175,3.0580363,2721.4,2721.0,1.08481136]
[1646799866176,0.06081879,2721.3,2721.0,1.08481136]
[1646799866374,0.5,2722.0,2721.0,1.08481136]
[1646799866581,0.08008575,2723.1,2721.0,1.08481136]
[1646799866582,0.55818822,2723.7,2721.9,3.0]
[1646799866778,0.68858392,2723.9,2723.2,0.01242247]
[1646799866779,0.00833311,2723.8,2723.2,0.01242247]
[1646799866979,0.20793204,2723.7,2723.3,0.445]
[1646799867175,0.01522794,2723.9,2723.4,0.445]
[1646799867176,0.18585819,2723.8,2723.4,0.445]
[1646799867377,0.44279041,2723.8,2723.7,1.08481136]
[1646799867574,0.47832433,2723.8,2723.7,1.08481136]
[1646799867775,0.47832433,2723.8,2723.7,1.52981136]
[1646799867776,0.92562841,2723.8,2723.7,1.52981136]
[1646799867976,1.27589614,2723.8,2723.7,1.52981136]
[1646799868175,1.27589614,2723.8,2723.7,1.106]
[1646799868176,1.09227841,2723.8,2723.7,1.106]
[1646799868377,1.11412521,2723.8,2723.7,1.106]
[1646799868577,0.0579707,2724.1,2723.8,5.5218]
[1646799868775,0.0579707,2724.1,2723.9,1.551]
[1646799868975,0.15878638,2724.1,2723.9,1.551]
[1646799869580,0.04739248,2724.1,2724.0,4.606]
[1646799869794,0.04739248,2724.1,2724.0,1.106]
[1646799869993,0.06445246,2724.8,2724.3,1.106]
[1646799870195,0.01909716,2724.4,2724.3,1.106]
[1646799870401,0.51909716,2724.4,2724.3,1.106]
[1646799870800,1.658544,2724.4,2724.3,1.106]
[1646799871001,1.658544,2724.4,2723.5,1.106]
[1646799871200,1.658544,2724.4,2724.0,1.106]
[1646799871201,2.026644,2724.4,2724.0,1.106]
[1646799871499,0.88719716,2724.4,2724.0,1.106]
[1646799871898,0.88719716,2724.4,2724.0,1.0826]
[1646799872104,0.00115679,2724.3,2724.0,1.0826]
[1646799872301,0.00115679,2724.3,2724.1,1.0826]
[1646799872703,0.5,2724.2,2724.1,1.0826]
[1646799873099,0.5,2724.2,2724.0,1.106]
[1646799873299,0.45,2724.2,2724.0,1.106]
[1646799873547,0.45,2724.2,2723.9,1.106]
[1646799873753,0.52770126,2724.2,2724.0,0.0012]
[1646799874051,0.07770126,2724.2,2724.0,0.0012]
[1646799874458,0.07885805,2724.2,2724.0,0.0012]
[1646799874658,1.37702015,2724.4,2722.8,0.35394251]
[1646799874659,5.5,2724.0,2722.8,0.35394251]
[1646799874954,5.5,2724.0,2723.0,0.35394251]
[1646799875154,5.50096,2724.0,2723.0,0.35394251]
[1646799875353,0.4496,2724.1,2723.0,0.35394251]
[1646799875558,0.4496,2724.1,2723.1,0.35394251]
[1646799875753,0.4496,2724.1,2723.1,0.34793651]
[1646799875954,0.4496,2724.1,2723.3,0.34793651]
[1646799876153,0.45370086,2724.1,2723.3,0.34793651]
[1646799876356,0.96265497,2723.7,2723.3,0.34793651]
[1646799876557,0.96265497,2723.7,2722.5,3.5]
[1646799876558,0.96265497,2723.7,2723.4,0.34793651]
[1646799876757,0.45370086,2724.1,2723.4,0.34793651]
[1646799876955,0.45274086,2724.1,2723.4,0.34793651]
[1646799877392,0.45274086,2724.1,2723.5,0.34793651]
[1646799877593,0.45370086,2724.1,2723.5,0.34793651]
[1646799877795,0.45274086,2724.1,2723.5,0.34793651]
[1646799878195,0.00314086,2724.1,2723.7,0.34793651]
[1646799878400,0.0176196,2724.5,2724.1,11.62793651]
[1646799878600,0.0176196,2724.5,2724.3,0.34793651]
[1646799878801,0.4496,2724.6,2724.5,2.84793651]
[1646799879000,0.0102988,2724.6,2724.5,0.69293651]
[1646799879199,0.0102988,2724.6,2724.5,3.52806651]
[1646799879398,0.0102988,2724.6,2724.5,2.52806651]
[1646799879399,0.03733751,2724.6,2724.5,2.52806651]
[1646799879705,0.08742158,2724.8,2724.7,2.24793651]
[1646799879901,0.08742158,2724.8,2724.7,0.69293651]
[1646799880102,0.08742158,2724.8,2724.7,0.64293651]
[1646799880301,1.08360429,2725.6,2724.9,0.19793651]
[1646799880505,1.08360429,2725.6,2725.1,1.11520651]
[1646799880506,0.01858976,2725.3,2725.1,1.11520651]
[1646799880702,0.0114117,2725.8,2725.4,5.5]
[1646799880906,0.0244828,2726.2,2725.7,5.19793651]
[1646799881151,0.04147172,2726.0,2725.9,0.21058592]
[1646799881351,0.0244828,2726.2,2725.9,0.21058592]
[1646799881352,0.2428584,2727.1,2726.1,11.47793651]
[1646799881552,0.2428584,2727.1,2726.3,0.19793651]
[1646799881553,0.02821316,2726.5,2726.3,0.19793651]
[1646799881747,1.03839916,2727.0,2726.5,0.19793651]
[1646799881748,0.02174,2726.6,2726.5,0.19793651]
[1646799881951,0.15526014,2726.6,2726.5,0.64293651]
[1646799882852,1.03743916,2727.0,2726.7,0.19793651]
[1646799883053,0.0581043,2727.2,2727.0,0.0108]
[1646799883054,0.0081043,2727.2,2727.0,0.0108]
[1646799883256,0.02755151,2727.6,2727.2,5.5]
[1646799883257,0.0583946,2727.6,2727.2,5.5]
[1646799883456,0.01425298,2728.9,2727.8,1.0]
[1646799883655,0.01425298,2728.9,2727.9,0.445]
[1646799883956,0.01425298,2728.9,2728.3,12.39408651]
[1646799884155,0.07632604,2728.4,2728.3,0.14793651]
[1646799884805,0.07632604,2728.4,2728.3,4.09293651]
[1646799885005,0.02552326,2729.1,2728.6,1.06382651]
[1646799885205,0.0309668,2728.9,2728.8,0.14793651]
[1646799885404,0.01895926,2729.1,2728.8,0.59293651]
[1646799885604,2.0,2729.0,2728.6,1.0]
[1646799885803,2.0,2729.0,2728.3,0.445]
[1646799885804,3.5,2728.9,2728.3,0.445]
[1646799886003,3.5,2728.9,2727.5,0.9166]
[1646799886204,0.14575203,2728.8,2726.9,3.6654]
[1646799886405,0.99191721,2727.3,2726.3,1.83354]
[1646799886608,0.01267848,2727.7,2726.4,0.445]
[1646799886805,0.91787,2728.7,2726.4,3.5]
[1646799887004,0.00096,2728.5,2727.0,1.83337]
[1646799887209,0.00096264,2728.9,2727.1,0.91669]
[1646799887210,0.00096,2728.6,2727.1,0.91669]
[1646799887405,0.04617444,2729.2,2727.1,0.91669]
[1646799887610,0.04617444,2729.2,2727.0,1.83337]
[1646799887611,0.98904142,2727.9,2727.0,1.83337]
[1646799887905,0.00096,2728.5,2727.0,1.83337]
[1646799888106,0.445,2728.8,2727.1,3.5]
[1646799888404,0.00096,2728.7,2727.3,0.91666]
[1646799888683,0.00096264,2727.7,2727.3,0.91666]
[1646799889074,0.00096264,2727.7,2727.2,0.445]
[1646799889475,0.00096264,2727.7,2727.0,1.83337]
[1646799889676,0.00096264,2727.7,2726.8,1.83349]
[1646799889876,0.00096264,2727.7,2726.1,7.16646]
[1646799890075,0.00096264,2727.7,2725.8,0.13819997]
[1646799890076,0.00096,2727.9,2725.8,0.13819997]
[1646799890279,0.09602956,2728.1,2725.9,0.13819997]
[1646799890477,0.00639011,2728.2,2725.9,1.97233997]
[1646799890678,3.4496,2727.7,2726.0,3.5]
[1646799890879,0.4496,2727.7,2726.1,3.5]
[1646799891076,1.19646491,2727.3,2725.9,1.87233997]
[1646799891278,3.5,2727.2,2725.9,1.87233997]
[1646799891478,1.19646491,2727.3,2725.9,1.87233997]
[1646799891876,0.00638949,2727.6,2726.0,0.19556751]
[1646799892078,0.00638949,2727.6,2726.2,11.28]
[1646799892299,0.00638949,2727.6,2726.5,11.28]
[1646799892506,0.00638949,2727.6,2726.7,11.28]
[1646799892706,0.00638949,2727.6,2726.8,0.445]
[1646799892910,0.00383259,2728.4,2726.5,0.00718585]
[1646799892911,0.01979549,2727.0,2726.5,0.00718585]
[1646799893109,0.01979549,2727.0,2726.5,0.45218585]
[1646799893308,0.01187098,2728.4,2727.0,5.53860057]
[1646799893509,0.01187098,2728.4,2727.1,0.445]
[1646799893706,0.01187098,2728.4,2727.2,14.78]
[1646799893908,0.01187098,2728.4,2727.4,11.28]
[1646799894110,0.02455973,2728.4,2727.5,0.445]
[1646799894308,0.02455973,2728.4,2727.8,1.0]
[1646799894309,1.13051166,2728.4,2727.8,1.0]
[1646799894507,0.02455973,2728.4,2727.8,1.445]
[1646799894708,0.01268875,2728.4,2727.7,1.83296]
[1646799895109,0.1,2728.8,2727.7,1.83296]
[1646799895309,0.1,2728.8,2727.8,3.5]
[1646799895512,0.04617444,2729.2,2727.8,3.945]
[1646799895513,1.23060999,2729.1,2727.8,3.945]
[1646799895709,1.23060999,2729.1,2728.0,1.0]
[1646799895911,1.23060999,2729.1,2727.7,1.83296]
[1646799895912,1.23156999,2729.1,2727.7,1.83296]
[1646799896645,0.00096,2729.1,2727.5,1.83314]
[1646799896848,0.0739242,2729.5,2727.5,1.83314]
[1646799896849,0.4496,2729.0,2727.7,1.105]
[1646799897045,0.4496,2729.0,2727.6,13.36147]
[1646799897046,0.4496,2729.0,2728.0,1.105]
[1646799897245,0.4496,2729.0,2728.2,1.105]
[1646799897445,0.4496,2729.0,2728.4,2.93742]
[1646799897745,0.01615883,2728.9,2728.6,1.105]
[1646799897946,0.41575883,2729.0,2728.8,1.105]
[1646799898346,0.41575883,2729.0,2728.8,4.605]
[1646799898550,0.0586041,2729.5,2728.8,1.105]
[1646799898749,0.0586041,2729.5,2729.0,1.105]
[1646799898951,0.0586041,2729.5,2729.2,1.105]
[1646799898952,0.01137533,2729.4,2729.2,1.105]
[1646799899149,0.01137533,2729.4,2729.3,1.5]
[1646799899349,0.01137533,2729.4,2729.3,1.105]
[1646799899549,0.01137533,2729.4,2729.3,5.05]
[1646799899811,0.0586041,2729.5,2729.4,1.105]
[1646799900000,4.1e-06,2729.5,2729.4,1.55]
[1646799900201,0.0200343,2729.9,2729.6,1.105]
[1646799900400,0.0200343,2729.9,2729.2,1.9159]
[1646799900401,0.01440875,2729.9,2729.8,6.605]
[1646799900605,0.01440875,2729.9,2729.8,5.05]
[1646799900815,0.0180268,2731.3,2730.4,1.105]
[1646799900816,0.067687,2731.2,2730.4,1.105]
[1646799901024,0.067687,2731.2,2730.6,1.105]
[1646799901209,0.04206334,2731.2,2730.7,1.55]
[1646799901410,0.04206334,2731.2,2730.9,1.105]
[1646799901812,0.04206334,2731.2,2731.0,1.105]
[1646799901813,3.0,2731.1,2731.0,1.105]
[1646799902009,4.0,2731.0,2729.9,0.445]
[1646799902208,0.96294118,2730.1,2729.9,0.445]
[1646799902407,0.96294118,2730.1,2729.3,0.445]
[1646799902610,0.00096,2730.7,2729.3,0.445]
[1646799902809,0.01221786,2729.8,2729.4,3.5]
[1646799903009,0.00096,2730.5,2729.5,0.445]
[1646799903010,0.01208446,2730.2,2729.5,0.445]
[1646799903746,0.01864258,2729.9,2729.5,0.45225188]
[1646799903948,0.01864258,2729.9,2729.5,0.00725188]
[1646799904347,0.01864258,2729.9,2729.5,0.00545988]
[1646799904545,3.0,2729.8,2729.5,0.00545988]
[1646799904746,3.0,2729.8,2728.1,0.53238751]
[1646799904747,3.14474123,2729.8,2728.1,0.53238751]
[1646799904950,0.00096,2729.7,2728.1,0.16688751]
[1646799905150,0.00096,2729.7,2729.5,0.00725169]
[1646799905349,0.51864258,2730.0,2729.5,0.00725169]
[1646799905954,3.0,2729.6,2729.5,5.169e-05]
[1646799906150,5.5,2729.5,2728.1,0.3655]
[1646799906350,5.5,2729.5,2727.9,0.12297569]
[1646799906351,3.0,2729.2,2727.9,0.12297569]
[1646799906550,3.0,2729.2,2727.7,11.28]
[1646799906551,1.5,2728.9,2727.1,3.5]
[1646799906752,1.5,2728.9,2727.0,0.03860057]
[1646799906951,3.01201367,2729.6,2728.9,0.09957574]
[1646799906952,0.5,2729.6,2728.9,0.09957574]
[1646799907150,0.5,2729.6,2729.3,11.28]
[1646799907400,3.7,2730.2,2729.5,11.28]